bitfinex-derivatives/quotes_SOLF0:USTF0_20260211
["timestamp","ask_amount","ask_price","bid_price","bid_amount"]
[1770849978817,5.18958296,79.921,79.884,11.2747]
[1770849979112,9.43036033,79.92,79.884,11.2747]
[1770849979308,5.18958296,79.918,79.884,11.2747]
[1770849984322,9.44984246,79.917,79.884,11.2747]
[1770849984518,5.18958296,79.918,79.884,11.2747]
[1770849985316,9.4518468,79.917,79.884,11.2747]
[1770849985619,5.18958296,79.918,79.884,11.2747]
[1770849985815,9.45239329,79.917,79.884,11.2747]
[1770849986016,5.61410765,79.917,79.883,5.36608331]
[1770849986214,9.4555756,79.916,79.883,5.36608331]
[1770849986519,5.61410765,79.917,79.883,5.36608331]
[1770849986718,9.45584139,79.916,79.883,5.36608331]
[1770849986915,5.61410765,79.917,79.883,5.36608331]
[1770849987216,5.61410765,79.915,79.872,5.61060316]
[1770849987411,5.61410765,79.913,79.876,11.2757]
[1770849987611,5.66121813,79.911,79.872,5.61060316]
[1770849987812,9.45863584,79.91,79.872,5.61060316]
[1770849988015,5.66121813,79.911,79.881,11.275]
[1770849988215,9.46147814,79.91,79.881,11.275]
[1770849988517,9.46147814,79.909,79.881,11.275]
[1770849988720,9.46147814,79.908,79.881,11.275]
[1770849988919,9.46147814,79.907,79.881,11.275]
[1770849989116,9.46147814,79.906,79.881,11.275]
[1770849989320,9.46147814,79.905,79.881,11.275]
[1770849989522,5.66121813,79.91,79.881,11.275]
[1770849989523,9.46147814,79.904,79.881,11.275]
[1770849989823,5.66121813,79.91,79.881,11.275]
[1770849990023,9.52072159,79.909,79.881,11.275]
[1770849990325,9.52072159,79.908,79.881,11.275]
[1770849990516,5.66121813,79.906,79.875,11.276]
[1770849990717,5.66121813,79.904,79.85,4.01098864]
[1770849991019,15.21192241,79.926,79.85,4.01098864]
[1770849991020,5.66121813,79.902,79.85,5.59310368]
[1770849991217,5.66121813,79.9,79.85,5.59310368]
[1770849991426,5.66121813,79.898,79.85,5.59310368]
[1770849991720,5.66121813,79.896,79.85,5.59310368]
[1770849991925,5.66121813,79.894,79.85,5.59310368]
[1770849992128,5.66121813,79.889,79.854,11.2789]
[1770849992325,9.52072159,79.893,79.854,11.2789]
[1770849992326,5.66121813,79.887,79.854,11.2789]
[1770849992523,15.18193972,79.886,79.854,11.2789]
[1770849992831,5.66121813,79.884,79.845,11.2802]
[1770849993020,5.66121813,79.882,79.845,5.59310368]
[1770849993220,9.51485568,79.881,79.845,5.59310368]
[1770849993525,9.51349919,79.88,79.845,5.59310368]
[1770849993725,9.51349919,79.879,79.845,5.59310368]
[1770849993923,9.51349919,79.878,79.845,5.59310368]
[1770849994125,9.51349919,79.877,79.845,5.59310368]
[1770849994324,5.66121813,79.882,79.845,5.59310368]
[1770849994325,11.2753,79.881,79.845,5.59310368]
[1770849994525,9.51190718,79.88,79.845,5.59310368]
[1770849994828,5.66121813,79.878,79.841,5.59310368]
[1770849995037,9.51190718,79.877,79.843,5.59310368]
[1770849995332,9.51190718,79.876,79.843,5.59310368]
[1770849995527,9.51190718,79.875,79.843,5.59310368]
[1770849995730,5.66121813,79.887,79.845,5.59310368]
[1770849995929,5.66121813,79.885,79.845,5.59310368]
[1770849996921,5.66121813,79.883,79.812,5.59310368]
[1770849997127,5.66121813,79.869,79.812,5.59310368]
[1770849997327,5.66121813,79.867,79.833,11.2819]
[1770849997520,5.66121813,79.894,79.84,4.01098864]
[1770849997724,5.66121813,79.892,79.84,9.60409232]
[1770849998025,5.66121813,79.89,79.841,5.59310368]
[1770849998426,5.66121813,79.888,79.841,5.59310368]
[1770849998927,5.66121813,79.887,79.841,5.59310368]
[1770849999332,5.66121813,79.885,79.841,5.59310368]
[1770850000734,5.66121813,79.885,79.844,5.59310368]
[1770850005345,5.66121813,79.885,79.845,11.2802]
[1770850007037,5.66121813,79.885,79.846,5.59310368]
[1770850007236,5.66121813,79.885,79.847,11.2799]
[1770850007438,5.66121813,79.885,79.848,5.59310368]
[1770850007842,5.66121813,79.885,79.847,11.2799]
[1770850010143,5.66121813,79.885,79.848,5.59310368]
[1770850014748,5.43208281,79.883,79.848,5.59310368]
[1770850014948,5.43208281,79.881,79.848,5.59310368]
[1770850019855,5.43208281,79.879,79.848,5.59310368]
[1770850020552,9.50083587,79.878,79.849,11.2796]
[1770850020754,5.43208281,79.879,79.849,11.2796]
[1770850020955,5.43208281,79.892,79.848,5.59310368]
[1770850021148,5.43208281,79.89,79.856,5.25452559]
[1770850021354,5.43208281,79.899,79.856,5.25452559]
[1770850021555,5.43208281,79.897,79.856,5.25452559]
[1770850021852,11.2716,79.907,79.868,16.53152559]
[1770850021853,5.43208281,79.907,79.868,16.53152559]
[1770850022050,14.93755373,79.906,79.868,16.53152559]
[1770850022251,9.50547092,79.905,79.869,5.25452559]
[1770850022550,9.50547092,79.904,79.869,5.25452559]
[1770850022756,5.43208281,79.906,79.85,4.01098864]
[1770850022757,9.50547092,79.903,79.873,5.25452559]
[1770850022958,9.50547092,79.902,79.873,5.25452559]
[1770850023157,9.50547092,79.901,79.873,5.25452559]
[1770850023359,5.43208281,79.906,79.873,5.25452559]
[1770850023659,9.50583823,79.905,79.873,5.25452559]
[1770850023846,5.43208281,79.917,79.873,5.25452559]
[1770850024050,5.43208281,79.915,79.873,5.25452559]
[1770850024251,5.43208281,79.913,79.875,5.25452559]
[1770850024560,9.50636475,79.912,79.875,5.25452559]
[1770850024750,5.43208281,79.913,79.875,5.25452559]
[1770850024950,9.5097054,79.912,79.875,5.25452559]
[1770850025150,5.43208281,79.913,79.875,5.25452559]
[1770850025359,14.94296214,79.912,79.875,5.25452559]
[1770850025557,5.43208281,79.912,79.875,5.25452559]
[1770850025750,5.43208281,79.912,79.876,11.2757]
[1770850025947,5.43208281,79.912,79.876,16.53022559]
[1770850026152,5.43208281,79.912,79.877,5.25452559]
[1770850027054,4.01098864,79.92,79.879,5.25452559]
[1770850027259,9.51136728,79.919,79.879,5.25452559]
[1770850027459,9.51136728,79.918,79.882,5.25452559]
[1770850027653,5.43208281,79.922,79.882,5.25452559]
[1770850027654,9.51136728,79.917,79.882,5.25452559]
[1770850027854,9.51136728,79.916,79.882,5.25452559]
[1770850028157,9.51136728,79.915,79.882,5.25452559]
[1770850028455,9.51136728,79.914,79.882,5.25452559]
[1770850028658,9.51136728,79.913,79.882,5.25452559]
[1770850028856,9.51136728,79.912,79.883,11.2748]
[1770850029056,9.44307145,79.92,79.883,11.2748]
[1770850029258,14.94571306,79.919,79.883,11.2748]
[1770850029555,9.51363025,79.918,79.883,11.2748]
[1770850029756,9.51363025,79.917,79.883,11.2748]
[1770850029957,9.51363025,79.916,79.883,11.2748]
[1770850030156,9.51363025,79.915,79.883,11.2748]
[1770850030357,9.51363025,79.914,79.883,11.2748]
[1770850030660,9.51363025,79.913,79.883,11.2748]
[1770850030853,9.51363025,79.912,79.883,11.2748]
[1770850031054,3.025e-05,79.911,79.89,11.2738]
[1770850031353,5.43208281,79.919,79.89,11.2738]
[1770850037165,5.43208281,79.919,79.884,5.25452559]
[1770850038866,5.43208281,79.919,79.886,16.52892559]
[1770850044474,5.43208281,79.919,79.889,11.274]
[1770850046464,5.42902317,79.916,79.881,11.275]
[1770850046868,5.42902317,79.916,79.876,5.23272334]
[1770850047271,5.42902317,79.911,79.876,5.23272334]
[1770850048771,5.12046563,79.909,79.876,5.23272334]
[1770850049977,5.12046563,79.907,79.872,11.2764]
[1770850050878,11.2716,79.906,79.872,11.2764]
[1770850051068,5.12046563,79.905,79.872,11.2764]
[1770850051784,5.12046563,79.905,79.873,5.00479376]
[1770850056476,5.12046563,79.9,79.863,5.00479376]
[1770850056784,5.12046563,79.9,79.821,23.31243838]
[1770850056785,5.12046563,79.898,79.851,5.00479376]
[1770850056970,5.12046563,79.896,79.851,5.00479376]
[1770850057171,5.12046563,79.894,79.851,5.00479376]
[1770850057372,5.12046563,79.892,79.851,5.00479376]
[1770850057770,5.12046563,79.889,79.852,5.00479376]
[1770850058782,5.12046563,79.886,79.852,5.00479376]
[1770850059783,11.2748,79.884,79.852,5.00479376]
[1770850060179,5.12046563,79.883,79.843,11.2804]
[1770850060379,5.12046563,79.883,79.844,5.00479376]
[1770850061881,5.12046563,79.88,79.844,5.00479376]
[1770850066780,11.2753,79.881,79.844,5.00479376]
[1770850066984,11.2753,79.881,79.847,5.00479376]
[1770850067580,5.12046563,79.909,79.853,5.00479376]
[1770850067780,5.12046563,79.909,79.806,23.31243838]
[1770850067781,4.01022928,79.93,79.861,5.00479376]
[1770850068086,5.12046563,79.924,79.882,5.00479376]
[1770850068285,4.01022928,79.94,79.882,5.00479376]
[1770850068286,5.12046563,79.922,79.882,5.00479376]
[1770850068493,5.12046563,79.92,79.882,5.00479376]
[1770850069881,5.12046563,79.919,79.882,5.00479376]
[1770850073196,5.41417358,79.913,79.882,5.00479376]
[1770850073397,5.41417358,79.913,79.869,16.41314636]
[1770850074893,5.41417358,79.911,79.869,16.41314636]
[1770850077098,5.41417358,79.909,79.869,16.41314636]
[1770850077696,5.41417358,79.909,79.86,4.01022928]
[1770850077697,5.41417358,79.909,79.872,11.2764]
[1770850081706,5.41417358,79.904,79.87,5.13644636]
[1770850081909,5.41417358,79.902,79.87,5.13644636]
[1770850085300,5.41417358,79.902,79.871,11.2766]
[1770850086808,5.41417358,79.902,79.871,16.41304636]
[1770850087006,5.41417358,79.902,79.873,16.41264636]
[1770850087214,5.41417358,79.902,79.874,5.13644636]
[1770850088408,11.271,79.911,79.874,5.13644636]
[1770850088600,9.38192964,79.91,79.874,5.13644636]
[1770850088800,9.38192964,79.909,79.874,5.13644636]
[1770850089010,9.38192964,79.908,79.874,5.13644636]
[1770850089210,5.41417358,79.909,79.874,5.13644636]
[1770850089412,9.38379945,79.908,79.874,5.13644636]
[1770850089610,9.38379945,79.907,79.875,16.41234636]
[1770850089810,5.41417358,79.909,79.875,16.41234636]
[1770850090011,9.38432854,79.908,79.875,16.41234636]
[1770850090211,5.41417358,79.909,79.875,16.41234636]
[1770850090212,9.38432854,79.907,79.876,5.13644636]
[1770850090409,5.41417358,79.909,79.876,5.13644636]
[1770850090615,9.3914968,79.908,79.876,5.13644636]
[1770850090909,9.3914968,79.907,79.876,5.13644636]
[1770850091108,5.41417358,79.909,79.876,5.13644636]
[1770850091310,9.38941243,79.908,79.876,5.13644636]
[1770850091613,5.41417358,79.923,79.88,4.01022928]
[1770850091818,5.41417358,79.939,79.881,5.13644636]
[1770850092014,5.41417358,79.937,79.881,5.13644636]
[1770850092219,5.41417358,79.932,79.895,11.2732]
[1770850092419,5.41417358,79.93,79.895,11.2732]
[1770850092611,9.39009735,79.929,79.895,11.2732]
[1770850092811,9.39009735,79.928,79.895,11.2732]
[1770850093014,5.41417358,79.929,79.895,11.2732]
[1770850093312,9.39093826,79.928,79.895,16.40964636]
[1770850093512,5.41417358,79.929,79.895,16.40964636]
[1770850093513,5.41417358,79.929,79.896,5.13644636]
[1770850093714,9.38921104,79.928,79.896,5.13644636]
[1770850094020,5.41417358,79.929,79.896,5.13644636]
[1770850097329,5.41417358,79.949,79.899,5.13644636]
[1770850097533,9.38583994,79.948,79.899,5.13644636]
[1770850097823,9.38583994,79.948,79.877,22.5514]
[1770850097824,5.41417358,79.948,79.911,11.2709]
[1770850098021,9.38744283,79.947,79.912,5.13644636]
[1770850098326,5.41417358,79.948,79.912,5.13644636]
[1770850099318,5.41417358,79.946,79.912,5.13644636]
[1770850100723,99.88,79.969,79.9,4.01022928]
[1770850100724,5.05514168,79.956,79.92,5.39369554]
[1770850101723,5.05514168,79.956,79.922,11.2693]
[1770850102124,5.05514168,79.956,79.922,16.66299554]
[1770850102622,5.05514168,79.956,79.9,4.00729567]
[1770850102623,5.05514168,79.953,79.908,5.39369554]
[1770850102831,5.05514168,79.949,79.895,5.39369554]
[1770850103029,5.05514168,79.939,79.895,5.39369554]
[1770850103224,5.05514168,79.937,79.895,5.39369554]
[1770850103426,5.05514168,79.935,79.895,5.39369554]
[1770850103627,5.05514168,79.933,79.895,5.39369554]
[1770850103931,5.05514168,79.933,79.897,11.2729]
[1770850104329,9.37000722,79.932,79.897,11.2729]
[1770850104525,5.05514168,79.933,79.897,11.2729]
[1770850104727,9.37128271,79.932,79.897,11.2729]
[1770850105028,5.05514168,79.933,79.897,11.2729]
[1770850105230,9.37127648,79.932,79.897,11.2729]
[1770850105427,5.05514168,79.933,79.897,11.2729]
[1770850105627,9.3724752,79.932,79.897,11.2729]
[1770850105833,5.05514168,79.933,79.897,11.2729]
[1770850106029,9.37040298,79.932,79.897,11.2729]
[1770850106229,5.05514168,79.933,79.897,11.2729]
[1770850106434,9.37279278,79.932,79.897,11.2729]
[1770850106735,5.05514168,79.933,79.897,16.66659554]
[1770850106932,9.3723025,79.932,79.897,16.66659554]
[1770850107134,5.05514168,79.933,79.897,16.66659554]
[1770850107429,9.37334914,79.932,79.897,16.66659554]
[1770850107736,5.05514168,79.933,79.898,5.23915578]
[1770850111829,9.40655741,79.932,79.899,11.2725]
[1770850112026,9.40655224,79.931,79.899,11.2725]
[1770850112225,5.05514168,79.933,79.899,11.2725]
[1770850112534,9.40910752,79.932,79.9,5.23915578]
[1770850112735,5.05514168,79.933,79.9,5.23915578]
[1770850112922,9.40917241,79.932,79.9,5.23915578]
[1770850113122,5.05514168,79.933,79.902,5.23915578]
[1770850113330,9.4091688,79.932,79.902,5.23915578]
[1770850113532,5.05514168,79.933,79.902,5.23915578]
[1770850113835,9.40872593,79.932,79.902,5.23915578]
[1770850114036,5.05514168,79.933,79.902,5.23915578]
[1770850114228,9.41255159,79.932,79.902,5.23915578]
[1770850114435,5.05514168,79.933,79.902,5.23915578]
[1770850114630,9.41223509,79.932,79.902,5.23915578]
[1770850114827,5.05514168,79.933,79.902,5.23915578]
[1770850115031,5.20938105,79.929,79.891,5.23915578]
[1770850115337,5.20938105,79.927,79.881,5.23915578]
[1770850115538,5.20938105,79.927,79.88,4.00729567]
[1770850115539,9.41170994,79.926,79.893,5.23915578]
[1770850115835,5.20938105,79.927,79.893,5.23915578]
[1770850116430,9.41842821,79.926,79.893,5.23915578]
[1770850116638,9.41842821,79.925,79.893,5.23915578]
[1770850116831,9.41842821,79.924,79.896,11.273]
[1770850117028,5.20938105,79.927,79.896,11.273]
[1770850117227,9.41634818,79.926,79.896,11.273]
[1770850117428,5.20938105,79.927,79.896,11.273]
[1770850117636,5.20938105,79.925,79.896,11.273]
[1770850123634,5.20938105,79.923,79.888,11.274]
[1770850123841,5.20938105,79.921,79.888,11.274]
[1770850124141,5.20938105,79.919,79.888,11.274]
[1770850124340,5.20938105,79.917,79.888,11.274]
[1770850124543,5.20938105,79.915,79.888,11.274]
[1770850125344,9.42212558,79.914,79.888,11.274]
[1770850125541,5.20938105,79.915,79.888,11.274]
[1770850125744,9.42577204,79.914,79.888,11.274]
[1770850126041,11.64222966,79.952,79.9,4.00729567]
[1770850126238,9.42490206,79.951,79.9,4.00729567]
[1770850126440,9.42490206,79.95,79.9,4.00729567]
[1770850126737,9.42490206,79.949,79.9,4.00729567]
[1770850126938,9.42490206,79.948,79.9,4.00729567]
[1770850127139,9.42490206,79.947,79.9,4.00729567]
[1770850127442,9.42490206,79.946,79.9,4.00729567]
[1770850127642,9.42490206,79.945,79.9,4.00729567]
[1770850127843,9.42490206,79.944,79.912,11.2707]
[1770850128139,15.64952533,79.96,79.901,5.23915578]
[1770850128140,5.20938105,79.95,79.901,5.23915578]
[1770850128348,9.4270365,79.949,79.901,5.23915578]
[1770850128541,5.20938105,79.947,79.911,5.23915578]
[1770850128841,5.20938105,79.945,79.91,11.271]
[1770850129051,5.20938105,79.943,79.91,11.271]
[1770850129345,9.4270365,79.942,79.91,11.271]
[1770850129540,5.20938105,79.943,79.91,11.271]
[1770850129541,9.4270365,79.941,79.91,11.271]
[1770850129742,9.4270365,79.94,79.91,11.271]
[1770850130042,5.20938105,79.943,79.91,11.271]
[1770850130246,9.4330996,79.942,79.91,11.271]
[1770850130543,9.4330996,79.941,79.91,11.271]
[1770850130846,9.4330996,79.94,79.91,11.271]
[1770850131053,5.20938105,79.943,79.91,11.271]
[1770850131345,9.43430434,79.942,79.91,11.271]
[1770850131544,5.20938105,79.943,79.912,11.2708]
[1770850131746,5.20938105,79.943,79.912,16.51657091]
[1770850132241,5.20938105,79.943,79.913,5.24577091]
[1770850132742,16.20803875,79.954,79.918,5.24577091]
[1770850132944,9.43087525,79.953,79.918,5.24577091]
[1770850133149,9.43087525,79.952,79.918,5.24577091]
[1770850133352,9.43087525,79.951,79.918,5.24577091]
[1770850133642,15.21192241,79.975,79.881,99.86]
[1770850133643,5.3633713,79.978,79.93,4.00729567]
[1770850133842,5.3633713,79.978,79.92,4.00729567]
[1770850134044,5.3633713,79.978,79.936,11.2673]
[1770850134248,5.36349355,79.975,79.936,11.2673]
[1770850135754,5.39834212,79.973,79.926,11.2687]
[1770850136641,5.39847967,79.969,79.926,11.2687]
[1770850136842,5.39847967,79.959,79.9,4.00729567]
[1770850137044,5.4239658,79.949,79.9,4.00729567]
[1770850137247,5.4239658,79.949,79.871,99.84]
[1770850137442,5.4239658,79.949,79.89,4.00729567]
[1770850137752,5.4239658,79.949,79.9,4.00729567]
[1770850138146,16.6895658,79.949,79.9,15.27969567]
[1770850138453,5.4239658,79.949,79.9,4.00729567]
[1770850138952,5.4239658,79.949,79.901,0.15057153]
[1770850139152,5.4239658,79.949,79.91,0.15057153]
[1770850140052,5.4239658,79.949,79.912,0.15591714]
[1770850140452,11.2631,79.967,79.864,37.6]
[1770850140453,5.25981765,79.966,79.921,0.15591714]
[1770850141444,5.25981765,79.966,79.923,0.19230181]
[1770850142147,5.25981765,79.966,79.931,0.19761021]
[1770850142854,5.24442069,79.989,79.931,0.19761021]
[1770850143054,5.26303953,79.974,79.933,11.2678]
[1770850143757,5.26303953,79.974,79.942,11.43741577]
[1770850144252,5.26309846,79.988,79.942,0.17091577]
[1770850144950,5.26309846,79.988,79.951,0.1759344]
[1770850145452,5.26309846,79.988,79.962,11.2637]
[1770850145750,5.24574445,80.008,79.963,0.21064242]
[1770850145954,5.24579327,80.006,79.951,0.21566672]
[1770850146145,5.24579327,80.004,79.951,0.21566672]
[1770850146752,5.24579327,80.002,79.958,11.2643]
[1770850146956,5.24579327,80.002,79.959,0.22073348]
[1770850147643,5.24579327,80.002,79.939,107.66]
[1770850147644,5.24579327,80.002,79.964,0.06352173]
[1770850149851,5.24579327,80.002,79.965,11.2633]
[1770850156550,5.39515675,80.0,79.965,11.2633]
[1770850159563,5.39515675,80.0,79.956,11.2645]
[1770850159959,5.39515675,80.0,79.896,37.6]
[1770850159960,5.42661767,79.99,79.94,4.00729567]
[1770850160365,5.42673217,79.989,79.946,11.2659]
[1770850161856,5.36884403,79.988,79.946,11.2659]
[1770850163062,5.36893163,79.98,79.939,11.2669]
[1770850163957,5.3607508,79.978,79.939,11.2669]
[1770850164867,5.36083285,79.976,79.939,11.2669]
[1770850169574,5.39564346,79.973,79.933,0.02916406]
[1770850169971,5.3957308,79.97,79.925,11.2688]
[1770850170171,5.3957308,79.97,79.926,0.03274083]
[1770850170172,9.29784561,79.969,79.926,0.03274083]
[1770850170373,5.3957308,79.967,79.926,0.03274083]
[1770850170572,9.30380229,79.966,79.926,0.03274083]
[1770850170776,5.3957308,79.967,79.926,0.03274083]
[1770850170977,5.38173658,79.965,79.926,0.03274083]
[1770850174580,5.35931911,79.963,79.925,11.2688]
[1770850175781,5.38869107,79.961,79.925,11.2688]
[1770850178386,5.38869107,79.961,79.925,11.32751561]
[1770850179990,5.38869107,79.961,79.926,0.0540662]
[1770850181591,5.38869107,79.961,79.928,11.32210657]
[1770850183590,5.40851224,79.959,79.928,0.05360657]
[1770850186797,5.40851224,79.959,79.929,11.2683]
[1770850193001,5.56453725,79.967,79.929,11.2683]
[1770850193400,5.56453725,79.965,79.929,11.2683]
[1770850193607,5.56453725,79.965,79.92,4.00448327]
[1770850193608,5.56453725,79.975,79.92,4.00448327]
[1770850193800,5.56453725,79.975,79.93,4.00448327]
[1770850194502,5.56464321,79.973,79.936,11.2673]
[1770850194805,5.56464321,79.971,79.936,11.2673]
[1770850194994,5.56381687,79.969,79.936,11.2673]
[1770850195196,14.88716449,79.968,79.936,11.2673]
[1770850195405,9.32334762,79.967,79.936,11.2673]
[1770850195705,5.56381687,79.968,79.936,11.2673]
[1770850195903,9.32549729,79.967,79.936,11.2673]
[1770850196204,5.56381687,79.968,79.936,11.2673]
[1770850196504,9.32829994,79.967,79.936,11.2673]
[1770850196807,5.56381687,79.968,79.936,11.2673]
[1770850197005,9.32878903,79.967,79.936,11.2673]
[1770850197199,5.56381687,79.968,79.936,11.2673]
[1770850197400,9.33188447,79.967,79.936,11.2673]
[1770850197601,9.33188447,79.966,79.936,11.2673]
[1770850197801,5.56381687,79.968,79.936,11.2673]
[1770850198004,9.32897289,79.967,79.936,11.2673]
[1770850198204,14.86618306,79.966,79.936,11.2673]
[1770850198405,9.32897289,79.965,79.936,11.2673]
[1770850198700,5.53721017,79.966,79.936,11.2673]
[1770850198905,9.33204203,79.965,79.936,11.2673]
[1770850199107,5.53721017,79.966,79.936,11.2673]
[1770850199312,9.33205634,79.965,79.936,11.2673]
[1770850199500,9.33205634,79.964,79.936,11.2673]
[1770850199700,5.53721017,79.966,79.936,11.2673]
[1770850199904,9.33605952,79.965,79.936,11.2673]
[1770850200207,9.3360296,79.964,79.936,11.2673]
[1770850200408,9.3360296,79.963,79.936,11.2673]
[1770850200596,5.53721017,79.966,79.936,11.2673]
[1770850200800,9.33207303,79.965,79.936,11.2673]
[1770850201000,9.33207303,79.964,79.936,11.2673]
[1770850201208,9.33207303,79.963,79.936,11.2673]
[1770850201403,9.33207303,79.962,79.936,11.2673]
[1770850201605,9.33207303,79.961,79.936,11.2673]
[1770850201805,5.52417963,79.962,79.91,4.00448327]
[1770850202000,5.52426401,79.96,79.91,4.00448327]
[1770850202199,5.52426401,79.958,79.9,4.00448327]
[1770850202400,5.52426401,79.956,79.9,4.00448327]
[1770850202607,5.52426401,79.954,79.9,4.00448327]
[1770850202805,5.52426401,79.952,79.9,4.00448327]
[1770850203006,5.52426401,79.95,79.9,4.00448327]
[1770850203204,5.51063873,79.939,79.9,4.00448327]
[1770850203405,5.51063873,79.937,79.89,4.00448327]
[1770850203607,15.21192241,79.965,79.829,281.1138085]
[1770850203608,5.51063873,79.935,79.88,4.00448327]
[1770850203801,4.00448327,79.93,79.88,4.00448327]
[1770850204108,5.51063873,79.928,79.88,4.00448327]
[1770850204308,5.51072246,79.924,79.87,4.00448327]
[1770850204513,5.51072246,79.922,79.87,4.00448327]
[1770850204704,5.51072246,79.919,79.86,4.00448327]
[1770850205010,4.00448327,79.92,79.86,4.00448327]
[1770850205011,5.51072246,79.916,79.873,11.2762]
[1770850205205,5.44653602,79.914,79.873,11.2762]
[1770850205415,5.44653602,79.912,79.873,11.2762]
[1770850205709,5.44653602,79.91,79.873,11.2762]
[1770850206011,14.77627614,79.909,79.873,11.2762]
[1770850206210,9.32967206,79.908,79.873,11.2762]
[1770850206409,9.32967206,79.907,79.873,11.2762]
[1770850206611,5.44660408,79.909,79.873,11.2762]
[1770850206819,9.29667797,79.908,79.873,11.2762]
[1770850207011,9.29667797,79.907,79.873,11.2762]
[1770850207212,5.44660408,79.909,79.873,11.2762]
[1770850207413,5.44660408,79.909,79.873,11.40368597]
[1770850207614,5.44660408,79.909,79.874,0.12748597]
[1770850209911,5.44660408,79.909,79.862,0.11488065]
[1770850210116,5.44660408,79.909,79.827,99.84]
[1770850210117,4.00448327,79.9,79.851,0.11476779]
[1770850210323,5.41711692,79.894,79.851,0.11476779]
[1770850210815,9.27239409,79.893,79.841,0.11703977]
[1770850211016,5.41219419,79.882,79.841,0.11703977]
[1770850212708,5.41224963,79.879,79.841,0.11703977]
[1770850213715,5.39873702,79.876,79.841,0.11703977]
[1770850214109,5.39878964,79.873,79.841,0.11703977]
[1770850215216,5.3966267,79.872,79.821,11.2835]
[1770850215424,4.00448327,79.87,79.821,11.2835]
[1770850215616,5.3966267,79.869,79.821,11.2835]
[1770850216216,5.3966267,79.869,79.821,11.45250256]
[1770850216424,5.3966267,79.869,79.822,0.16900256]
[1770850217819,15.28118327,79.87,79.822,0.16900256]
[1770850217820,5.38665273,79.865,79.822,0.16900256]
[1770850218611,11.2787,79.857,79.822,0.16900256]
[1770850219218,16.76423148,79.857,79.822,0.16900256]
[1770850220012,5.4855929,79.856,79.822,0.16900256]
[1770850220727,11.2791,79.854,79.822,0.16900256]
[1770850222528,11.2799,79.848,79.822,0.16900256]
[1770850222923,5.48023688,79.853,79.822,0.16900256]
[1770850223123,5.48023688,79.853,79.811,0.24177302]
[1770850224119,22.5458,79.898,79.8,4.00448327]
[1770850224120,5.45049621,79.849,79.8,0.24376923]
[1770850224325,5.45049621,79.839,79.79,4.00448327]
[1770850224728,5.45049621,79.839,79.791,0.24376923]
[1770850225632,5.45049621,79.839,79.793,11.46539399]
[1770850226333,5.45049621,79.837,79.793,11.46539399]
[1770850226631,5.45049621,79.837,79.747,37.6]
[1770850226632,5.45049621,79.837,79.782,0.17985574]
[1770850227331,4.01879747,79.84,79.782,0.17985574]
[1770850227332,5.45049621,79.825,79.782,0.17985574]
[1770850227729,5.45049621,79.825,79.779,11.2895]
[1770850227730,5.40981619,79.819,79.771,11.2906]
[1770850228230,5.41014925,79.81,79.76,4.01879747]
[1770850228434,5.41014925,79.809,79.76,0.16844934]
[1770850228634,5.41014925,79.799,79.748,0.16844934]
[1770850229122,5.4250642,79.786,79.748,0.16844934]
[1770850229330,5.4250642,79.786,79.737,11.2955]
[1770850229525,5.4250642,79.786,79.73,4.01879747]
[1770850230836,5.42511244,79.774,79.73,4.01879747]
[1770850231431,5.42511244,79.774,79.728,0.14051539]
[1770850231632,5.35604178,79.772,79.728,0.14051539]
[1770850232134,16.64677762,79.771,79.728,0.14051539]
[1770850232735,5.35607762,79.77,79.728,0.14051539]
[1770850232929,5.35607762,79.765,79.746,3.302e-05]
[1770850233135,4.01879747,79.76,79.746,3.302e-05]
[1770850233338,5.37021228,79.759,79.746,3.302e-05]
[1770850233835,5.37021228,79.752,79.706,0.25761828]
[1770850234847,5.37021228,79.752,79.7,4.01879747]
[1770850235947,5.2397461,79.742,79.7,4.01879747]
[1770850236736,5.2397611,79.74,79.7,4.01879747]
[1770850237250,11.2967,79.729,79.694,0.26116199]
[1770850241151,11.2967,79.729,79.676,11.3041]
[1770850241152,5.17585825,79.742,79.701,0.66043969]
[1770850241447,11.42215408,79.841,79.671,2.18297468]
[1770850241448,5.17585825,79.766,79.731,0.66043969]
[1770850241651,11.2905,79.773,79.74,4.01879747]
[1770850241852,11.2905,79.773,79.741,0.66209916]
[1770850242845,5.17586309,79.789,79.75,4.68256714]
[1770850243047,5.19358737,79.809,79.751,0.6283211]
[1770850243448,5.19358737,79.809,79.761,0.6283211]
[1770850243661,5.19358737,79.823,79.771,0.6283211]
[1770850243855,5.19358737,79.823,79.781,0.62993102]
[1770850244260,11.2852,79.811,79.781,0.62993102]
[1770850244449,11.2852,79.811,79.781,3.102e-05]
[1770850244644,5.50854466,79.81,79.76,4.01879747]
[1770850244845,11.2872,79.796,79.76,4.01879747]
[1770850245450,11.2859,79.806,79.76,4.01879747]
[1770850245650,11.2859,79.806,79.77,4.01879747]